[Event "Live Chess"]
[Site "Chess.com"]
[Date "2024.06.02"]
[Round "-"]
[White "NAZRIZ1977"]
[Black "stevochess11"]
[Result "1-0"]
[WhiteElo "2061"]
[BlackElo "1689"]
[TimeControl "300"]
[EndTime "7:27:58 PDT"]
[Termination "NAZRIZ1977 won by resignation"]

1. d4 {[%clk 0:04:57.9]} 1... Nf6 {[%clk 0:04:57.2]} 2. c4 {[%clk 0:04:57]} 2...
c5 {[%clk 0:04:56]} 3. d5 {[%clk 0:04:55.8]} 3... b5 {[%clk 0:04:49.2]} 4. cxb5
{[%clk 0:04:54.7]} 4... a6 {[%clk 0:04:48.1]} 5. bxa6 {[%clk 0:04:53.3]} 5...
Bxa6 {[%clk 0:04:47.1]} 6. Nc3 {[%clk 0:04:51.3]} 6... g6 {[%clk 0:04:45.8]} 7.
e4 {[%clk 0:04:50.3]} 7... Bxf1 {[%clk 0:04:42.7]} 8. Kxf1 {[%clk 0:04:50.2]}
8... d6 {[%clk 0:04:40.6]} 9. Nf3 {[%clk 0:04:48.6]} 9... Bg7 {[%clk 0:04:39]}
10. g3 {[%clk 0:04:48.2]} 10... Nbd7 {[%clk 0:04:38]} 11. Kg2 {[%clk 0:04:47.8]}
11... O-O {[%clk 0:04:37.1]} 12. Re1 {[%clk 0:04:46.6]} 12... Qa5 {[%clk
0:04:35.6]} 13. a4 {[%clk 0:04:42.8]} 13... Rfb8 {[%clk 0:04:33]} 14. Nd2 {[%clk
0:04:34.4]} 14... Nb6 {[%clk 0:04:05.6]} 15. Nb3 {[%clk 0:03:57.3]} 15... Qb4
{[%clk 0:04:00.9]} 16. a5 {[%clk 0:03:51.5]} 16... Na4 {[%clk 0:03:37.6]} 17.
Rxa4 {[%clk 0:03:39.9]} 17... Qxb3 {[%clk 0:03:33.7]} 18. Qxb3 {[%clk
0:03:39.8]} 18... Rxb3 {[%clk 0:03:32.9]} 19. a6 {[%clk 0:03:38.8]} 19... Nd7
{[%clk 0:03:22]} 20. Bg5 {[%clk 0:03:31.8]} 20... Kf8 {[%clk 0:02:57.7]} 21. Nd1
{[%clk 0:03:18.5]} 21... Bxb2 {[%clk 0:02:50.8]} 22. Nxb2 {[%clk 0:03:16.1]}
22... Rxb2 {[%clk 0:02:49.9]} 23. Rea1 {[%clk 0:03:09.4]} 23... Ne5 {[%clk
0:02:42.4]} 24. a7 {[%clk 0:03:02.8]} 24... Nd3 {[%clk 0:02:37.7]} 25. Be3
{[%clk 0:02:55.3]} 25... Ke8 {[%clk 0:02:26]} 26. Rd1 {[%clk 0:02:53.3]} 26...
Nb4 {[%clk 0:02:21.6]} 27. e5 {[%clk 0:02:51.5]} 27... Kd7 {[%clk 0:02:18.6]}
28. exd6 {[%clk 0:02:48.5]} 28... exd6 {[%clk 0:02:17.3]} 29. Bd2 {[%clk
0:02:40.5]} 29... Nxd5 {[%clk 0:02:11.7]} 30. Bc1 {[%clk 0:02:14]} 30... Rc2
{[%clk 0:02:02.9]} 31. Rxd5 {[%clk 0:02:07.7]} 31... Rxc1 {[%clk 0:02:01.6]} 32.
Ra6 {[%clk 0:02:06.4]} 32... Ra1 {[%clk 0:01:53.1]} 33. Rxa1 {[%clk 0:02:04.1]}
1-0

[Event "Live Chess"]
[Site "Chess.com"]
[Date "2024.06.02"]
[Round "-"]
[White "agamilewska"]
[Black "seasidecastle27"]
[Result "1-0"]
[WhiteElo "1766"]
[BlackElo "1932"]
[TimeControl "300"]
[EndTime "7:28:32 PDT"]
[Termination "agamilewska won by resignation"]

1. d4 {[%clk 0:04:57.7]} 1... e6 {[%clk 0:04:58.8]} 2. c4 {[%clk 0:04:56.8]}
2... d5 {[%clk 0:04:57.2]} 3. cxd5 {[%clk 0:04:55.9]} 3... exd5 {[%clk
0:04:55.9]} 4. Nc3 {[%clk 0:04:55.8]} 4... Nf6 {[%clk 0:04:54.6]} 5. Nf3 {[%clk
0:04:55.3]} 5... Be7 {[%clk 0:04:53.5]} 6. Bg5 {[%clk 0:04:52.9]} 6... O-O
{[%clk 0:04:52]} 7. Bxf6 {[%clk 0:04:52.5]} 7... Bxf6 {[%clk 0:04:50.8]} 8. e3
{[%clk 0:04:52.4]} 8... c6 {[%clk 0:04:49.5]} 9. Bd3 {[%clk 0:04:47.3]} 9... Nd7
{[%clk 0:04:45.5]} 10. h3 {[%clk 0:04:46.7]} 10... Re8 {[%clk 0:04:40.3]} 11.
O-O {[%clk 0:04:45.2]} 11... Nf8 {[%clk 0:04:33.5]} 12. Re1 {[%clk 0:04:44.4]}
12... Bd7 {[%clk 0:04:30]} 13. Rc1 {[%clk 0:04:40.5]} 13... Rc8 {[%clk
0:04:24.8]} 14. Na4 {[%clk 0:04:27.9]} 14... Ne6 {[%clk 0:04:17]} 15. Nc5 {[%clk
0:04:25.2]} 15... Nxc5 {[%clk 0:04:13.1]} 16. dxc5 {[%clk 0:04:25.1]} 16... Bxb2
{[%clk 0:04:10.7]} 17. Rb1 {[%clk 0:04:22.8]} 17... Ba3 {[%clk 0:04:06.6]} 18.
Rxb7 {[%clk 0:04:12]} 18... Bxc5 {[%clk 0:04:04.4]} 19. Bxh7+ {[%clk 0:04:07.9]}
19... Kxh7 {[%clk 0:03:55.8]} 20. Qc2+ {[%clk 0:04:07.2]} 20... Kg8 {[%clk
0:03:54.3]} 21. Qxc5 {[%clk 0:04:06.6]} 21... Qf6 {[%clk 0:03:40.1]} 22. Rxd7
{[%clk 0:04:01.6]} 1-0

[Event "Live Chess"]
[Site "Chess.com"]
[Date "2024.06.02"]
[Round "-"]
[White "80Times"]
[Black "matt1979"]
[Result "1-0"]
[WhiteElo "1886"]
[BlackElo "1427"]
[TimeControl "300"]
[EndTime "7:28:34 PDT"]
[Termination "80Times won by checkmate"]

1. e4 {[%clk 0:04:57.4]} 1... d6 {[%clk 0:04:58.5]} 2. d4 {[%clk 0:04:55.9]}
2... Nf6 {[%clk 0:04:57.5]} 3. Nc3 {[%clk 0:04:55.4]} 3... Nbd7 {[%clk
0:04:55.1]} 4. Nf3 {[%clk 0:04:50.5]} 4... e5 {[%clk 0:04:53.8]} 5. Bc4 {[%clk
0:04:49.2]} 5... Be7 {[%clk 0:04:50.4]} 6. O-O {[%clk 0:04:43]} 6... c6 {[%clk
0:04:49.4]} 7. a4 {[%clk 0:04:40.2]} 7... Qc7 {[%clk 0:04:47.9]} 8. Re1 {[%clk
0:04:39]} 8... h6 {[%clk 0:04:46.6]} 9. h3 {[%clk 0:04:38]} 9... g5 {[%clk
0:04:42]} 10. Be3 {[%clk 0:04:19.3]} 10... Nf8 {[%clk 0:04:30.2]} 11. dxe5
{[%clk 0:04:13]} 11... dxe5 {[%clk 0:04:26.1]} 12. Qe2 {[%clk 0:04:10.4]} 12...
g4 {[%clk 0:04:06.7]} 13. hxg4 {[%clk 0:04:08.3]} 13... Bxg4 {[%clk 0:04:05.4]}
14. Rad1 {[%clk 0:04:00.4]} 14... Ng6 {[%clk 0:03:45.9]} 15. Rd3 {[%clk
0:03:29.2]} 15... Nh4 {[%clk 0:03:40.8]} 16. Red1 {[%clk 0:03:26.9]} 16... Nxf3+
{[%clk 0:03:37.1]} 17. gxf3 {[%clk 0:03:25.3]} 17... Bh3 {[%clk 0:03:35.3]} 18.
Kh2 {[%clk 0:03:20.8]} 18... Qc8 {[%clk 0:03:27.7]} 19. Rg1 {[%clk 0:03:13.1]}
19... Nh5 {[%clk 0:02:51.2]} 20. f4 {[%clk 0:02:46.6]} 20... exf4 {[%clk
0:02:44.3]} 21. Qxh5 {[%clk 0:02:24.7]} 21... fxe3 {[%clk 0:02:37]} 22. Qxf7#
{[%clk 0:02:17.6]} 1-0

[Event "Live Chess"]
[Site "Chess.com"]
[Date "2024.06.02"]
[Round "-"]
[White "ProfPoisson"]
[Black "Plimsol"]
[Result "0-1"]
[WhiteElo "1330"]
[BlackElo "2372"]
[TimeControl "300"]
[EndTime "7:29:12 PDT"]
[Termination "Plimsol won by resignation"]

1. e4 {[%clk 0:04:54]} 1... e5 {[%clk 0:04:58.5]} 2. Nf3 {[%clk 0:04:51.4]} 2...
Nc6 {[%clk 0:04:57.7]} 3. d4 {[%clk 0:04:46]} 3... exd4 {[%clk 0:04:56.2]} 4.
Bc4 {[%clk 0:04:44.3]} 4... g6 {[%clk 0:04:54.6]} 5. Ng5 {[%clk 0:04:39.9]} 5...
Nh6 {[%clk 0:04:52.6]} 6. Qf3 {[%clk 0:04:36.1]} 6... Ne5 {[%clk 0:04:50.4]} 7.
Qb3 {[%clk 0:04:29.5]} 7... Nxc4 {[%clk 0:04:47.4]} 8. Qxc4 {[%clk 0:04:27.5]}
8... Bg7 {[%clk 0:04:46.5]} 9. O-O {[%clk 0:04:20.1]} 9... O-O {[%clk 0:04:45]}
10. Nf3 {[%clk 0:04:17.6]} 10... b6 {[%clk 0:04:20.4]} 11. Bxh6 {[%clk
0:04:14.7]} 11... Bxh6 {[%clk 0:04:18.7]} 12. Qxd4 {[%clk 0:04:12.2]} 12... Bg7
{[%clk 0:04:16.6]} 13. Qd5 {[%clk 0:04:08.3]} 13... Rb8 {[%clk 0:04:14.2]} 14.
Nc3 {[%clk 0:04:05.7]} 14... Bb7 {[%clk 0:04:13.2]} 15. Qd3 {[%clk 0:04:01.7]}
15... Bxc3 {[%clk 0:04:05]} 16. bxc3 {[%clk 0:03:53]} 16... d6 {[%clk
0:04:04.2]} 17. Rad1 {[%clk 0:03:50.4]} 17... Qf6 {[%clk 0:04:02.1]} 18. Rfe1
{[%clk 0:03:39.4]} 18... Rfe8 {[%clk 0:04:01]} 19. Qc4 {[%clk 0:03:31.4]} 19...
Re7 {[%clk 0:03:51.6]} 20. Nd4 {[%clk 0:03:13.3]} 20... Rbe8 {[%clk 0:03:49.9]}
21. Nc6 {[%clk 0:03:07.9]} 21... Bxc6 {[%clk 0:03:46.4]} 22. Qxc6 {[%clk
0:03:06.2]} 22... a5 {[%clk 0:03:23.6]} 23. f3 {[%clk 0:03:03.3]} 23... Kg7
{[%clk 0:03:21]} 24. c4 {[%clk 0:02:55.3]} 24... Qc3 {[%clk 0:03:16.6]} 25. a4
{[%clk 0:02:43.3]} 25... Qxc2 {[%clk 0:03:13]} 26. Qd5 {[%clk 0:02:39.1]} 26...
Re5 {[%clk 0:03:09.9]} 27. Qc6 {[%clk 0:02:34.2]} 27... R8e7 {[%clk 0:03:07.4]}
28. h4 {[%clk 0:02:23.2]} 28... Rc5 {[%clk 0:03:03.9]} 29. Qa8 {[%clk
0:02:17.6]} 29... Qxc4 {[%clk 0:02:56.9]} 30. Kh1 {[%clk 0:02:01.5]} 30... Qxa4
{[%clk 0:02:53.2]} 31. Qd8 {[%clk 0:01:54.5]} 31... Re8 {[%clk 0:02:44.9]} 32.
Qxe8 {[%clk 0:01:31.5]} 32... Qxe8 {[%clk 0:02:42.8]} 33. g4 {[%clk 0:01:29.8]}
33... Qe5 {[%clk 0:02:39.4]} 34. h5 {[%clk 0:01:26.9]} 34... Qg3 {[%clk
0:02:38.1]} 35. h6+ {[%clk 0:01:22.6]} 35... Kxh6 {[%clk 0:02:36.8]} 36. g5+
{[%clk 0:01:20.5]} 36... Kg7 {[%clk 0:02:33.8]} 37. f4 {[%clk 0:01:17.5]} 37...
Rc2 {[%clk 0:02:32]} 0-1

[Event "Live Chess"]
[Site "Chess.com"]
[Date "2024.06.02"]
[Round "-"]
[White "r0ad_t0-gm"]
[Black "wadsy27"]
[Result "0-1"]
[WhiteElo "2271"]
[BlackElo "2600"]
[TimeControl "300"]
[EndTime "7:29:15 PDT"]
[Termination "wadsy27 won by resignation"]

1. Nf3 {[%clk 0:04:58.4]} 1... Nf6 {[%clk 0:04:56.8]} 2. g3 {[%clk 0:04:57.5]}
2... e6 {[%clk 0:04:56.4]} 3. Bg2 {[%clk 0:04:56.5]} 3... d5 {[%clk 0:04:55.4]}
4. O-O {[%clk 0:04:56.4]} 4... Be7 {[%clk 0:04:54.7]} 5. d3 {[%clk 0:04:56.3]}
5... O-O {[%clk 0:04:53.9]} 6. Nbd2 {[%clk 0:04:56.2]} 6... c5 {[%clk
0:04:52.5]} 7. e4 {[%clk 0:04:55.4]} 7... Nc6 {[%clk 0:04:52.2]} 8. Re1 {[%clk
0:04:54.7]} 8... b5 {[%clk 0:04:50.2]} 9. e5 {[%clk 0:04:52]} 9... Nd7 {[%clk
0:04:49.4]} 10. Nf1 {[%clk 0:04:51.6]} 10... a5 {[%clk 0:04:48.4]} 11. h3 {[%clk
0:04:50.7]} 11... Ba6 {[%clk 0:04:46.8]} 12. h4 {[%clk 0:04:48.4]} 12... Qb6
{[%clk 0:04:45.5]} 13. h5 {[%clk 0:04:47.1]} 13... h6 {[%clk 0:04:44.8]} 14. g4
{[%clk 0:04:37.2]} 14... Nd4 {[%clk 0:04:38.3]} 15. Ng3 {[%clk 0:04:27]} 15...
Nxf3+ {[%clk 0:04:34.2]} 16. Qxf3 {[%clk 0:04:25.4]} 16... Rfc8 {[%clk
0:04:24.3]} 17. g5 {[%clk 0:04:13.7]} 17... hxg5 {[%clk 0:04:21.5]} 18. h6
{[%clk 0:04:12.6]} 18... g6 {[%clk 0:04:17]} 19. Qg4 {[%clk 0:03:33.6]} 19...
Qd8 {[%clk 0:04:14.5]} 20. Bxd5 {[%clk 0:02:59]} 20... exd5 {[%clk 0:03:33.1]}
21. e6 {[%clk 0:02:58.9]} 21... Nf8 {[%clk 0:03:32.3]} 22. exf7+ {[%clk
0:02:47.1]} 22... Kh7 {[%clk 0:03:31.4]} 23. Nf5 {[%clk 0:01:51.9]} 23... Bf6
{[%clk 0:03:16.7]} 24. Re8 {[%clk 0:01:28.8]} 24... Qd7 {[%clk 0:03:13.2]} 25.
Ne3 {[%clk 0:01:08.3]} 25... Qxf7 {[%clk 0:03:07.9]} 26. Rxc8 {[%clk 0:01:06.4]}
26... Bxc8 {[%clk 0:03:05.8]} 27. Qf3 {[%clk 0:01:02.2]} 27... Be6 {[%clk
0:02:53.2]} 28. Bd2 {[%clk 0:00:57]} 28... Bxb2 {[%clk 0:02:50]} 29. Qxf7+
{[%clk 0:00:50]} 29... Bxf7 {[%clk 0:02:49.9]} 30. Rb1 {[%clk 0:00:49.5]} 30...
Bd4 {[%clk 0:02:48.2]} 31. Rxb5 {[%clk 0:00:49.4]} 31... Bxe3 {[%clk 0:02:17.9]}
32. Bxe3 {[%clk 0:00:49.3]} 32... d4 {[%clk 0:02:17.1]} 33. Bxg5 {[%clk
0:00:48]} 33... Ne6 {[%clk 0:02:15.4]} 34. Bd2 {[%clk 0:00:45.5]} 34... g5
{[%clk 0:02:14]} 35. Rb7 {[%clk 0:00:44]} 35... Kg6 {[%clk 0:02:12.7]} 36. h7
{[%clk 0:00:34.8]} 36... Rh8 {[%clk 0:02:06.7]} 37. Bxa5 {[%clk 0:00:33.4]}
37... Rxh7 {[%clk 0:02:05.6]} 38. Bb6 {[%clk 0:00:31.3]} 38... Nf4 {[%clk
0:02:02.7]} 39. Bxc5 {[%clk 0:00:24.5]} 39... Bxa2 {[%clk 0:01:53.4]} 40. Rb6+
{[%clk 0:00:23]} 40... Kf5 {[%clk 0:01:51.4]} 41. f3 {[%clk 0:00:22.3]} 41...
Bd5 {[%clk 0:01:48.1]} 42. Bxd4 {[%clk 0:00:20.8]} 42... Ne2+ {[%clk 0:01:46.8]}
43. Kf2 {[%clk 0:00:19.4]} 43... Nxd4 {[%clk 0:01:46.4]} 44. c3 {[%clk
0:00:17.7]} 44... Nxf3 {[%clk 0:01:21.2]} 45. c4 {[%clk 0:00:16.7]} 45... Bb7
{[%clk 0:01:18.1]} 46. Rb5+ {[%clk 0:00:14.4]} 46... Kf4 {[%clk 0:01:17]} 47.
Rb6 {[%clk 0:00:13.5]} 47... Rh2+ {[%clk 0:01:15.5]} 48. Kf1 {[%clk 0:00:13.2]}
48... Kg3 {[%clk 0:01:12.6]} 0-1

[Event "Live Chess"]
[Site "Chess.com"]
[Date "2024.06.02"]
[Round "-"]
[White "Mangoalo"]
[Black "juniortay"]
[Result "0-1"]
[WhiteElo "1066"]
[BlackElo "2303"]
[TimeControl "300"]
[EndTime "7:29:20 PDT"]
[Termination "juniortay won by resignation"]

1. c4 {[%clk 0:04:54.3]} 1... e6 {[%clk 0:04:58.2]} 2. d4 {[%clk 0:04:51.3]}
2... d5 {[%clk 0:04:58]} 3. cxd5 {[%clk 0:04:48.3]} 3... exd5 {[%clk 0:04:57.9]}
4. Nc3 {[%clk 0:04:47.4]} 4... c5 {[%clk 0:04:57.5]} 5. dxc5 {[%clk 0:04:38]}
5... d4 {[%clk 0:04:54.3]} 6. Ne4 {[%clk 0:04:33.3]} 6... Qd5 {[%clk 0:04:46.3]}
7. f3 {[%clk 0:04:20.2]} 7... Nc6 {[%clk 0:04:40.6]} 8. Nh3 {[%clk 0:04:14.4]}
8... Bxh3 {[%clk 0:04:37.4]} 9. gxh3 {[%clk 0:04:12.3]} 9... Bxc5 {[%clk
0:04:35.6]} 10. Nxc5 {[%clk 0:04:08.9]} 10... Qxc5 {[%clk 0:04:33.3]} 11. b3
{[%clk 0:04:02.7]} 11... Nf6 {[%clk 0:04:28.3]} 12. Bd2 {[%clk 0:03:58.8]} 12...
Qh5 {[%clk 0:04:21.5]} 13. Qc2 {[%clk 0:03:54.8]} 13... Qh4+ {[%clk 0:04:17.8]}
14. Kd1 {[%clk 0:03:51]} 14... O-O {[%clk 0:04:16.6]} 15. e4 {[%clk 0:03:43.1]}
15... Rac8 {[%clk 0:04:01]} 16. Be1 {[%clk 0:03:31.3]} 16... Qh5 {[%clk
0:03:57.1]} 17. Be2 {[%clk 0:03:27]} 17... Nb4 {[%clk 0:03:49]} 18. Qd2 {[%clk
0:03:19]} 18... Nc2 {[%clk 0:03:44.8]} 19. Rc1 {[%clk 0:03:14.4]} 19... Ne3+
{[%clk 0:03:42]} 20. Qxe3 {[%clk 0:03:01.3]} 20... dxe3 {[%clk 0:03:40.4]} 0-1

[Event "Live Chess"]
[Site "Chess.com"]
[Date "2024.06.02"]
[Round "-"]
[White "halfberg"]
[Black "CheckThis4"]
[Result "0-1"]
[WhiteElo "1916"]
[BlackElo "2681"]
[TimeControl "300"]
[EndTime "7:29:25 PDT"]
[Termination "CheckThis4 won by resignation"]

1. e4 {[%clk 0:04:55.5]} 1... d5 {[%clk 0:04:58.9]} 2. exd5 {[%clk 0:04:53.7]}
2... c6 {[%clk 0:04:58.5]} 3. d4 {[%clk 0:04:51.9]} 3... cxd5 {[%clk 0:04:57.2]}
4. c4 {[%clk 0:04:50.3]} 4... Nf6 {[%clk 0:04:55.8]} 5. Nc3 {[%clk 0:04:48.9]}
5... Nc6 {[%clk 0:04:47.2]} 6. Nf3 {[%clk 0:04:47.8]} 6... e6 {[%clk 0:04:38.7]}
7. Be2 {[%clk 0:04:47]} 7... Be7 {[%clk 0:04:35.8]} 8. O-O {[%clk 0:04:45.8]}
8... O-O {[%clk 0:04:34.8]} 9. h3 {[%clk 0:04:42.9]} 9... dxc4 {[%clk
0:04:33.9]} 10. Bxc4 {[%clk 0:04:41.2]} 10... b6 {[%clk 0:04:33.4]} 11. d5
{[%clk 0:04:35.5]} 11... Na5 {[%clk 0:04:31.9]} 12. Bb5 {[%clk 0:04:22.9]} 12...
Nxd5 {[%clk 0:04:25]} 13. Ne4 {[%clk 0:04:11.4]} 13... Bb7 {[%clk 0:04:22.5]}
14. a3 {[%clk 0:03:51.8]} 14... Rc8 {[%clk 0:04:20.4]} 15. Bd3 {[%clk
0:03:36.5]} 15... h6 {[%clk 0:04:14.6]} 16. Bd2 {[%clk 0:03:30.1]} 16... f5
{[%clk 0:04:07.3]} 17. Nc3 {[%clk 0:03:26]} 17... Bf6 {[%clk 0:03:59.5]} 18.
Nxd5 {[%clk 0:03:23.6]} 18... Qxd5 {[%clk 0:03:57.5]} 19. Bb4 {[%clk 0:03:10.3]}
19... Rfd8 {[%clk 0:03:55.5]} 20. Qe2 {[%clk 0:03:01.7]} 20... Nb3 {[%clk
0:03:49.4]} 21. Rad1 {[%clk 0:02:58.8]} 21... Nd4 {[%clk 0:03:48.1]} 22. Qe3
{[%clk 0:02:49.5]} 22... Nxf3+ {[%clk 0:03:38.6]} 23. gxf3 {[%clk 0:02:44]}
23... Qxf3 {[%clk 0:03:32.5]} 24. Qxf3 {[%clk 0:02:41.4]} 24... Bxf3 {[%clk
0:03:32.4]} 25. Rd2 {[%clk 0:02:31.6]} 25... Bg5 {[%clk 0:03:30.6]} 26. Rc2
{[%clk 0:02:21.9]} 26... Rxc2 {[%clk 0:03:15.3]} 27. Bxc2 {[%clk 0:02:20.5]}
27... Bd2 {[%clk 0:03:08.3]} 28. Bb3 {[%clk 0:02:17.1]} 28... Kf7 {[%clk
0:03:04.4]} 29. Rd1 {[%clk 0:02:13.3]} 29... Bxd1 {[%clk 0:03:02.3]} 30. Bxd1
{[%clk 0:02:12.2]} 30... Bxb4 {[%clk 0:03:00.7]} 0-1

[Event "Live Chess"]
[Site "Chess.com"]
[Date "2024.06.02"]
[Round "-"]
[White "Kyrylo7770"]
[Black "grillage"]
[Result "1-0"]
[WhiteElo "1654"]
[BlackElo "1857"]
[TimeControl "300"]
[EndTime "7:29:34 PDT"]
[Termination "Kyrylo7770 won on time"]

1. d4 {[%clk 0:04:58.6]} 1... e6 {[%clk 0:04:58.5]} 2. Nf3 {[%clk 0:04:57.6]}
2... Nf6 {[%clk 0:04:56.2]} 3. Bg5 {[%clk 0:04:56.9]} 3... Be7 {[%clk
0:04:54.5]} 4. h4 {[%clk 0:04:55.4]} 4... c5 {[%clk 0:04:45.6]} 5. e3 {[%clk
0:04:51.5]} 5... cxd4 {[%clk 0:04:44.1]} 6. exd4 {[%clk 0:04:50.5]} 6... d6
{[%clk 0:04:38.7]} 7. c3 {[%clk 0:04:49.4]} 7... b6 {[%clk 0:04:35.9]} 8. Bb5+
{[%clk 0:04:48.2]} 8... Bd7 {[%clk 0:04:33]} 9. Bxd7+ {[%clk 0:04:46.8]} 9...
Nbxd7 {[%clk 0:04:31.8]} 10. O-O {[%clk 0:04:46.2]} 10... h6 {[%clk 0:04:28.9]}
11. Bf4 {[%clk 0:04:45.2]} 11... O-O {[%clk 0:04:26.6]} 12. Nbd2 {[%clk
0:04:44.5]} 12... Nd5 {[%clk 0:04:24.7]} 13. Ne4 {[%clk 0:04:43.3]} 13... Nxf4
{[%clk 0:04:22.8]} 14. Qd2 {[%clk 0:04:41.9]} 14... Nd5 {[%clk 0:04:21]} 15. g3
{[%clk 0:04:41.2]} 15... N5f6 {[%clk 0:04:20.1]} 16. Nxf6+ {[%clk 0:04:37.7]}
16... Nxf6 {[%clk 0:04:19.1]} 17. Qf4 {[%clk 0:04:36.7]} 17... Rc8 {[%clk
0:04:13.2]} 18. Kg2 {[%clk 0:04:35]} 18... b5 {[%clk 0:04:10.5]} 19. g4 {[%clk
0:04:34.3]} 19... Nd5 {[%clk 0:04:06.5]} 20. Qg3 {[%clk 0:04:29.6]} 20... b4
{[%clk 0:04:00.2]} 21. g5 {[%clk 0:04:29]} 21... hxg5 {[%clk 0:03:57.8]} 22.
hxg5 {[%clk 0:04:28.4]} 22... g6 {[%clk 0:03:54.2]} 23. Rh1 {[%clk 0:04:27.7]}
23... Kg7 {[%clk 0:03:36.8]} 24. Rh6 {[%clk 0:04:17.5]} 24... Rh8 {[%clk
0:03:35.1]} 25. Rah1 {[%clk 0:04:17.1]} 25... Qc7 {[%clk 0:02:56]} 26. Qh4
{[%clk 0:04:11.6]} 26... Bxg5 {[%clk 0:01:35.6]} 27. Nxg5 {[%clk 0:04:07.4]}
27... Qb8 {[%clk 0:01:23]} 28. Rh7+ {[%clk 0:04:00.2]} 28... Rxh7 {[%clk
0:01:21.2]} 29. Qxh7+ {[%clk 0:03:59.3]} 29... Kf6 {[%clk 0:01:15.5]} 30. Ne4+
{[%clk 0:03:55.5]} 30... Ke7 {[%clk 0:01:12.8]} 31. Qh4+ {[%clk 0:03:51]} 31...
Kd7 {[%clk 0:01:09.7]} 32. Qh7 {[%clk 0:03:35]} 32... Rf8 {[%clk 0:01:05.2]} 33.
c4 {[%clk 0:03:26.9]} 33... Nf4+ {[%clk 0:01:01.7]} 34. Kf3 {[%clk 0:03:25.9]}
34... Nh5 {[%clk 0:00:52.5]} 35. Qh6 {[%clk 0:03:07.3]} 35... Qd8 {[%clk
0:00:31.5]} 36. c5 {[%clk 0:03:01]} 36... d5 {[%clk 0:00:28.5]} 37. Nd6 {[%clk
0:02:56.8]} 37... Qf6+ {[%clk 0:00:26.8]} 38. Ke2 {[%clk 0:02:54.2]} 38... Rh8
{[%clk 0:00:24.5]} 39. Qc1 {[%clk 0:02:48.3]} 39... Qxd4 {[%clk 0:00:19.3]} 40.
Nxf7 {[%clk 0:01:55.3]} 40... Rc8 {[%clk 0:00:16.5]} 41. Qe3 {[%clk 0:01:34.6]}
41... Nf4+ {[%clk 0:00:12.5]} 42. Kf3 {[%clk 0:01:33.3]} 42... Qxe3+ {[%clk
0:00:10.8]} 43. fxe3 {[%clk 0:01:32.4]} 43... Nd3 {[%clk 0:00:09.3]} 44. Rh7
{[%clk 0:01:28.6]} 44... Ke8 {[%clk 0:00:07.2]} 45. Nd6+ {[%clk 0:01:26.9]}
45... Kd8 {[%clk 0:00:06.1]} 46. Rh8+ {[%clk 0:01:23.9]} 46... Kd7 {[%clk
0:00:05.4]} 47. Rxc8 {[%clk 0:01:23]} 47... Nxb2 {[%clk 0:00:05]} 48. Ra8 {[%clk
0:01:21.3]} 48... Nd3 {[%clk 0:00:03.5]} 49. Rxa7+ {[%clk 0:01:20.5]} 49... Kc6
{[%clk 0:00:02.6]} 50. Nb7 {[%clk 0:01:16.1]} 50... Nxc5 {[%clk 0:00:00.8]} 51.
Nxc5 {[%clk 0:01:15.6]} 51... Kxc5 {[%clk 0:00:00.3]} 52. Rc7+ {[%clk
0:01:14.1]} 1-0

[Event "Live Chess"]
[Site "Chess.com"]
[Date "2024.06.02"]
[Round "-"]
[White "Colm_Buckley"]
[Black "NottheBishopSacrifice"]
[Result "1-0"]
[WhiteElo "1887"]
[BlackElo "2331"]
[TimeControl "300"]
[EndTime "7:29:39 PDT"]
[Termination "Colm_Buckley won - game abandoned"]

1. d4 {[%clk 0:04:57.7]} 1... d5 {[%clk 0:04:57.6]} 2. c4 {[%clk 0:04:57.1]}
2... e6 {[%clk 0:04:56.9]} 3. Nc3 {[%clk 0:04:56.5]} 3... Nf6 {[%clk 0:04:56.5]}
4. Nf3 {[%clk 0:04:56]} 4... Nbd7 {[%clk 0:04:54.3]} 5. Bg5 {[%clk 0:04:49.8]}
5... Be7 {[%clk 0:04:53.6]} 6. e3 {[%clk 0:04:48.3]} 6... O-O {[%clk 0:04:53]}
7. Rc1 {[%clk 0:04:45.6]} 7... h6 {[%clk 0:04:51.7]} 8. Bh4 {[%clk 0:04:44.1]}
8... a6 {[%clk 0:04:48.2]} 9. a3 {[%clk 0:04:39.9]} 9... dxc4 {[%clk 0:04:40.3]}
10. Bxc4 {[%clk 0:04:38.5]} 10... b5 {[%clk 0:04:36.7]} 11. Ba2 {[%clk
0:04:37.3]} 11... Bb7 {[%clk 0:04:33.2]} 12. O-O {[%clk 0:04:34.1]} 12... c5
{[%clk 0:04:32.3]} 13. Bb1 {[%clk 0:04:10.8]} 1-0